fUSD/lending_fUSD_20240114
["ID","MTS","AMOUNT","RATE_DAILY","PERIOD"]
[311587372,1705254695241,-2657.56,0.00031232,2]
[311587373,1705254695252,-500.0,0.00031232,2]
[311587374,1705254695263,-1605.99,0.00031232,2]
[311587375,1705254695274,-1053.84,0.00031232,2]
[311587376,1705254695285,-13923.52,0.00031232,2]
[311587377,1705254695295,-500.0,0.00031232,2]
[311587378,1705254695305,-13749.45,0.00031232,2]
[311587379,1705254695316,-1086.88,0.00031232,2]
[311587380,1705254695327,-500.0,0.00031232,2]
[311587381,1705254695337,-500.0,0.00031232,2]
[311587382,1705254695348,-507.02,0.00031232,2]
[311587383,1705254695359,-512.92,0.00031232,2]
[311587384,1705254695369,-500.0,0.00031232,2]
[311587385,1705254695380,-546.97,0.00031232,2]
[311587386,1705254695391,-36935.37,0.00031232,2]
[311587387,1705254695402,-500.0,0.00031232,2]
[311587388,1705254695412,-644.75,0.00031232,2]
[311587389,1705254695423,-541.88,0.00031232,2]
[311587390,1705254695433,-776.48,0.00031232,2]
[311587391,1705254695443,-762.58,0.00031232,2]
[311587392,1705254695454,-5174.76,0.00031232,2]
[311587393,1705254695464,-4603.34,0.00031232,2]
[311587394,1705254695474,-471.86354161,0.00031232,2]
[311587395,1705254695485,-1361.41,0.00031232,2]
[311587396,1705254695496,-551.34,0.00031232,2]
[311587397,1705254695507,-18687.6,0.00031232,2]
[311587398,1705254695518,-500.0,0.00031232,2]
[311587399,1705254695529,-500.0,0.00031232,2]
[311587400,1705254695540,-2606.26,0.00031232,2]
[311587401,1705254695550,-1070.66,0.00031232,2]
[311587402,1705254695562,-500.0,0.00031232,2]
[311587403,1705254695573,-538.37,0.00031232,2]
[311587404,1705254695583,-2734.88,0.00031232,2]
[311587405,1705254695593,-4925.51,0.00031232,2]
[311587406,1705254695604,-764.0,0.00031232,2]
[311587407,1705254695615,-446.21117274,0.00031232,2]
[311587408,1705254695625,-500.0,0.00031232,2]
[311587409,1705254695636,-500.0,0.00031232,2]
[311587410,1705254695646,-500.0,0.00031232,2]
[311587411,1705254695657,-1765.44,0.00031232,2]
[311587412,1705254695668,-3076.14,0.00031232,2]
[311587413,1705254695679,-500.0,0.00031232,2]
[311587414,1705254695690,-1266.12,0.00031232,2]
[311587415,1705254695702,-1792.67,0.00031232,2]
[311587416,1705254695712,-500.0,0.00031232,2]
[311587417,1705254695723,-500.0,0.00031232,2]
[311587418,1705254695734,-3926.07,0.00031232,2]
[311587419,1705254695744,-500.0,0.00031232,2]
[311587420,1705254695754,-1199.33,0.00031232,2]
[311587421,1705254695765,-519.94,0.00031232,2]
[311587422,1705254695776,-1261.09,0.00031232,2]
[311587423,1705254695788,-1000.0,0.00031232,2]
[311587424,1705254695799,-1408.57,0.00031232,2]
[311587425,1705254695810,-3536.73,0.00031232,2]
[311587426,1705254695821,-500.0,0.00031232,2]
[311587427,1705254695831,-12614.91,0.00031232,2]
[311587428,1705254695843,-500.0,0.00031232,2]
[311587429,1705254695855,-198.29940236,0.00031232,2]
[311587430,1705254695866,-5179.9,0.00031232,2]
[311587431,1705254695876,-2091.45,0.00031232,2]
[311587432,1705254695889,-7274.24,0.00031232,2]
[311587433,1705254695900,-500.0,0.00031232,2]
[311587434,1705254695911,-500.0,0.00031232,2]
[311587435,1705254695922,-500.0,0.00031232,2]
[311587436,1705254695933,-13931.34,0.00031232,2]
[311587437,1705254695944,-500.0,0.00031232,2]
[311587438,1705254695954,-500.0,0.00031232,2]
[311587439,1705254695965,-1104.21,0.00031232,2]
[311587440,1705254695977,-2085.5,0.00031232,2]
[311587441,1705254695987,-1967.26,0.00031232,2]
[311587442,1705254695998,-533.79,0.00031232,2]
[311587443,1705254696010,-500.0,0.00031232,2]
[311587444,1705254696021,-570.34,0.00031232,2]
[311587445,1705254696032,-500.0,0.00031232,2]
[311587446,1705254696044,-500.0,0.00031232,2]
[311587447,1705254696055,-631.88,0.00031232,2]
[311587448,1705254696068,-652.34,0.00031232,2]
[311587449,1705254696079,-9424.33,0.00031232,2]
[311587450,1705254696090,-500.0,0.00031232,2]
[311587451,1705254696102,-682.32,0.00031232,2]
[311587452,1705254696114,-1840.74,0.00031232,2]
[311587453,1705254696125,-4246.44,0.00031232,2]
[311587454,1705254696137,-3633.65,0.00031232,2]
[311587455,1705254696149,-2261.49,0.00031232,2]
[311587456,1705254696160,-890.95,0.00031232,2]
[311587457,1705254696171,-500.0,0.00031232,2]
[311587458,1705254696182,-500.0,0.00031232,2]
[311587459,1705254696192,-1873.09,0.00031232,2]
[311587460,1705254696203,-500.0,0.00031232,2]
[311587461,1705254696214,-1421.47,0.00031232,2]
[311587462,1705254696225,-500.0,0.00031232,2]
[311587463,1705254696235,-500.0,0.00031232,2]
[311587464,1705254696246,-500.0,0.00031232,2]
[311587465,1705254696257,-800.68,0.00031232,2]
[311587466,1705254696267,-2379.45,0.00031232,2]
[311587467,1705254696277,-500.0,0.00031232,2]
[311587468,1705254696288,-500.0,0.00031232,2]
[311587469,1705254696299,-3777.35,0.00031232,2]
[311587470,1705254696310,-2348.65,0.00031232,2]
[311587471,1705254696321,-500.0,0.00031232,2]
[311587472,1705254696332,-6603.21,0.00031232,2]
[311587473,1705254696342,-1554.42,0.00031232,2]
[311587474,1705254696353,-1924.51,0.00031232,2]
[311587475,1705254696363,-1388.96,0.00031232,2]
[311587476,1705254696374,-1000.0,0.00031232,2]
[311587477,1705254696385,-500.0,0.00031232,2]
[311587478,1705254696395,-869.37,0.00031232,2]
[311587479,1705254696407,-637.72,0.00031232,2]
[311587480,1705254696418,-705.91,0.00031232,2]
[311587481,1705254696429,-1802.01,0.00031232,2]
[311587482,1705254696440,-500.0,0.00031232,2]
[311587483,1705254696452,-500.0,0.00031232,2]
[311587484,1705254696463,-1005.76,0.00031232,2]
[311587485,1705254696474,-1139.58,0.00031232,2]
[311587486,1705254696485,-2440.46,0.00031232,2]
[311587487,1705254696495,-500.0,0.00031232,2]
[311587488,1705254696506,-500.0,0.00031232,2]
[311587489,1705254696519,-729.88,0.00031232,2]
[311587490,1705254696530,-500.0,0.00031232,2]
[311587491,1705254696540,-1109.22,0.00031232,2]
[311587492,1705254696552,-9293.44,0.00031232,2]
[311587493,1705254696563,-743.02,0.00031232,2]
[311587494,1705254696573,-586.01,0.00031232,2]
[311587495,1705254696585,-500.0,0.00031232,2]
[311587496,1705254696595,-500.0,0.00031232,2]
[311587497,1705254696606,-500.0,0.00031232,2]
[311587498,1705254696616,-500.0,0.00031232,2]
[311587499,1705254696626,-1044.54,0.00031232,2]
[311587500,1705254696637,-1926.33,0.00031232,2]
[311587501,1705254696647,-500.0,0.00031232,2]
[311587502,1705254696658,-1156.25,0.00031232,2]
[311587503,1705254696668,-1139.2,0.00031232,2]
[311587504,1705254696678,-1448.68,0.00031232,2]
[311587505,1705254696688,-500.0,0.00031232,2]
[311587506,1705254696699,-2397.76,0.00031232,2]
[311587507,1705254696709,-1351.67,0.00031232,2]
[311587508,1705254696719,-602.63,0.00031232,2]
[311587509,1705254696729,-1057.68,0.00031232,2]
[311587510,1705254696739,-500.0,0.00031232,2]
[311587511,1705254696750,-500.0,0.00031232,2]
[311587512,1705254696760,-8256.08,0.00031232,2]
[311587513,1705254696770,-546.22,0.00031232,2]
[311587514,1705254696781,-497.75447163,0.00031232,2]
[311587515,1705254696791,-1098.19,0.00031232,2]
[311587516,1705254696802,-731.42,0.00031232,2]
[311587517,1705254696813,-1277.19,0.00031232,2]
[311587518,1705254696823,-1941.84,0.00031232,2]
[311587519,1705254696833,-3928.23,0.00031232,2]
[311587520,1705254696843,-500.0,0.00031232,2]
[311587521,1705254696853,-702.7,0.00031232,2]
[311587522,1705254696864,-500.0,0.00031232,2]
[311587523,1705254696874,-500.0,0.00031232,2]
[311587524,1705254696885,-796.24,0.00031232,2]
[311587525,1705254696896,-2073.52,0.00031232,2]
[311587526,1705254696906,-581.79,0.00031232,2]
[311587527,1705254696916,-1945.66,0.00031232,2]
[311587528,1705254696927,-500.0,0.00031232,2]
[311587529,1705254696937,-2019.56,0.00031232,2]
[311587530,1705254696947,-500.0,0.00031232,2]
[311587531,1705254696957,-500.0,0.00031232,2]
[311587532,1705254696967,-1162.31,0.00031232,2]
[311587533,1705254696978,-744.39,0.00031232,2]
[311587534,1705254696988,-500.0,0.00031232,2]
[311587535,1705254696998,-1628.56,0.00031232,2]
[311587536,1705254697009,-1757.85,0.00031232,2]
[311587537,1705254697019,-500.0,0.00031232,2]
[311587538,1705254697029,-621.65,0.00031232,2]
[311587539,1705254697039,-24669.86,0.00031232,2]
[311587540,1705254697050,-500.0,0.00031232,2]
[311587541,1705254697060,-500.0,0.00031232,2]
[311587542,1705254697074,-790.77,0.00031232,2]
[311587543,1705254697085,-1131.11,0.00031232,2]
[311587544,1705254697095,-500.0,0.00031232,2]
[311587545,1705254697106,-500.0,0.00031232,2]
[311587546,1705254697117,-2627.87,0.00031232,2]
[311587547,1705254697128,-500.0,0.00031232,2]
[311587548,1705254697140,-2431.74,0.00031232,2]
[311587549,1705254697151,-500.0,0.00031232,2]
[311587550,1705254697162,-619.23,0.00031232,2]
[311587551,1705254697173,-1398.37,0.00031232,2]
[311587552,1705254697184,-500.0,0.00031232,2]
[311587553,1705254697194,-500.0,0.00031232,2]
[311587554,1705254697204,-500.0,0.00031232,2]
[311587555,1705254697214,-635.27,0.00031232,2]
[311587556,1705254697225,-500.0,0.00031232,2]
[311587557,1705254697235,-2128.54,0.00031232,2]
[311587558,1705254697245,-546.4,0.00031232,2]
[311587559,1705254697255,-500.0,0.00031232,2]
[311587560,1705254697266,-500.0,0.00031232,2]
[311587561,1705254697277,-500.0,0.00031232,2]
[311587562,1705254697287,-730.39,0.00031232,2]
[311587563,1705254697298,-500.0,0.00031232,2]
[311587564,1705254697308,-746.79,0.00031232,2]
[311587565,1705254697319,-688.55,0.00031232,2]
[311587566,1705254697419,-1845.78,0.00031232,2]
[311587567,1705254697431,-1353.58,0.00031232,2]
[311587568,1705254697441,-500.0,0.00031232,2]
[311587569,1705254697451,-2456.1,0.00031232,2]
[311587570,1705254697461,-1751.67,0.00031232,2]
[311587571,1705254697471,-958.1,0.00031232,2]
[311587572,1705254697481,-977.67,0.00031232,2]
[311587573,1705254697491,-500.0,0.00031232,2]
[311587574,1705254697501,-1005.3,0.00031232,2]
[311587575,1705254697511,-500.0,0.00031232,2]
[311587576,1705254697520,-1100.07,0.00031232,2]
[311587577,1705254697530,-2038.82,0.00031232,2]
[311587578,1705254697541,-2725.4,0.00031232,2]
[311587579,1705254697551,-645.07,0.00031232,2]
[311587580,1705254697561,-4814.13,0.00031232,2]
[311587581,1705254697572,-500.0,0.00031232,2]
[311587582,1705254697581,-1085.28,0.00031232,2]
[311587583,1705254697591,-500.0,0.00031232,2]
[311587584,1705254697601,-1023.19,0.00031232,2]
[311587585,1705254697611,-500.0,0.00031232,2]
[311587586,1705254697621,-938.38,0.00031232,2]
[311587587,1705254697630,-650.45,0.00031232,2]
[311587588,1705254697641,-3050.06,0.00031232,2]
[311587589,1705254697651,-500.0,0.00031232,2]
[311587590,1705254697661,-1098.42,0.00031232,2]
[311587591,1705254697671,-2866.89,0.00031232,2]
[311587592,1705254697681,-500.0,0.00031232,2]
[311587593,1705254697691,-595.71059724,0.00031232,2]
[311587594,1705254697700,-991.95,0.00031232,2]
[311587595,1705254697710,-500.0,0.00031232,2]
[311587596,1705254697721,-500.0,0.00031232,2]
[311587597,1705254697731,-5608.33,0.00031232,2]
[311587598,1705254697742,-633.07,0.00031232,2]
[311587599,1705254697752,-500.0,0.00031232,2]
[311587600,1705254697762,-1002.42,0.00031232,2]
[311587601,1705254697772,-500.0,0.00031232,2]
[311587602,1705254697782,-500.0,0.00031232,2]
[311587603,1705254697792,-6080.5,0.00031232,2]
[311587604,1705254697802,-500.0,0.00031232,2]
[311587605,1705254697812,-500.0,0.00031232,2]
[311587606,1705254697822,-1200.16,0.00031232,2]
[311587607,1705254697833,-500.0,0.00031232,2]
[311587608,1705254697843,-500.0,0.00031232,2]
[311587609,1705254697853,-4523.2,0.00031232,2]
[311587610,1705254697863,-1443.19,0.00031232,2]
[311587611,1705254697873,-9121.86,0.00031232,2]
[311587612,1705254697884,-535.76,0.00031232,2]
[311587613,1705254697894,-1491.1,0.00031232,2]
[311587614,1705254697904,-500.0,0.00031232,2]
[311587615,1705254697915,-2410.62,0.00031232,2]
[311587616,1705254697925,-500.0,0.00031232,2]
[311587617,1705254697935,-500.0,0.00031232,2]
[311587618,1705254697946,-5763.39,0.00031232,2]
[311587619,1705254697956,-1168.02,0.00031232,2]
[311587620,1705254697967,-500.0,0.00031232,2]
[311587621,1705254697977,-2824.58,0.00031232,2]
[311587622,1705254697987,-617.19,0.00031232,2]
[311587623,1705254697997,-500.0,0.00031232,2]
[311587624,1705254698007,-19867.44,0.00031232,2]
[311587625,1705254698017,-5067.31,0.00031232,2]
[311587626,1705254698027,-1147.57,0.00031232,2]
[311587627,1705254698037,-1423.93,0.00031232,2]
[311587628,1705254698048,-822.98,0.00031232,2]
[311587629,1705254698059,-641.77,0.00031232,2]
[311587630,1705254698073,-1153.35,0.00031232,2]
[311587631,1705254698082,-3022.19,0.00031232,2]
[311587632,1705254698093,-500.0,0.00031232,2]
[311587633,1705254698103,-612.74,0.00031232,2]
[311587634,1705254698113,-500.0,0.00031232,2]
[311587635,1705254698123,-500.0,0.00031232,2]
[311587636,1705254698134,-835.25,0.00031232,2]
[311587637,1705254698144,-500.0,0.00031232,2]
[311587638,1705254698154,-1550.26,0.00031232,2]
[311587639,1705254698165,-893.14,0.00031232,2]
[311587640,1705254698174,-320.01189,0.00031232,7]
[311587641,1705254698184,-320.01189,0.00031232,7]
[311587642,1705254698194,-232.559274,0.00031232,7]
[311587643,1705254698203,-232.559274,0.00031232,7]
[311587644,1705254698213,-298.034588,0.00031232,7]
[311587645,1705254698223,-151.0,0.00031232,7]
[311587646,1705254698234,-151.0,0.00031232,7]
[311587647,1705254698243,-159.915185,0.00031232,7]
[311587648,1705254698253,-159.915185,0.00031232,7]
[311587649,1705254698263,-158.76,0.00031232,7]
[311587650,1705254698274,-158.76,0.00031232,7]
[311587651,1705254698284,-245.287094,0.00031232,7]
[311587652,1705254698293,-245.287094,0.00031232,7]
[311587653,1705254698304,-386.185175,0.00031232,7]
[311587654,1705254698314,-386.185175,0.00031232,7]
[311587655,1705254698324,-151.0,0.00031232,7]
[311587656,1705254698334,-155.29671215,0.00031269,19]
[311587657,1705254698343,-151.75914572,0.0003131,2]
[311587658,1705254698353,-831.08,0.00031363,2]
[311587659,1705254698363,-179.29,0.00031416,2]
[311587660,1705254698373,-160.29,0.00031444,2]
[311587661,1705254698384,-500.0,0.00031505,2]
[311587662,1705254698394,-300.0,0.00031505,2]
[311587663,1705254698403,-468.29370821,0.00031506,2]
[311587664,1705254698413,-500.0,0.00031506,2]
[311587665,1705254698422,-536.9402125,0.00031506,2]
[311587666,1705254698431,-500.0,0.00031506,2]
[311587667,1705254698441,-500.0,0.00031506,2]
[311587668,1705254698451,-500.0,0.00031506,2]
[311587669,1705254698460,-500.0,0.00031506,2]
[311587670,1705254698470,-520.82,0.00031506,2]
[311587671,1705254698481,-500.0,0.00031506,2]
[311587672,1705254698492,-500.0,0.00031506,2]
[311587673,1705254698503,-463.40424739,0.00031506,2]
[311587674,1705254698513,-500.0,0.00031506,2]
[311587675,1705254698524,-500.0,0.00031506,2]
[311587676,1705254698535,-500.0,0.00031506,2]
[311587677,1705254698545,-653.52,0.00031506,2]
[311587678,1705254698556,-520.83,0.00031506,2]
[311587679,1705254698566,-500.0,0.00031506,2]
[311587680,1705254698576,-569.22,0.00031506,2]
[311587681,1705254698586,-500.0,0.00031506,2]
[311587682,1705254698595,-730.18,0.00031506,2]
[311587683,1705254698605,-500.0,0.00031506,2]
[311587684,1705254698615,-500.0,0.00031506,2]
[311587685,1705254698625,-500.0,0.00031506,2]
[311587686,1705254698635,-500.0,0.00031506,2]
[311587687,1705254698644,-500.0,0.00031506,2]
[311587688,1705254698654,-500.0,0.00031506,2]
[311587689,1705254698665,-517.73,0.00031506,2]
[311587690,1705254698675,-524.33016353,0.00031506,2]
[311587691,1705254698685,-522.53349037,0.00031506,2]
[311587692,1705254698695,-500.0,0.00031506,2]
[311587693,1705254698705,-500.0,0.00031506,2]
[311587694,1705254698715,-643.63,0.00031506,2]
[311587695,1705254698725,-500.0,0.00031506,2]
[311587696,1705254698735,-609.69,0.00031506,2]
[311587697,1705254698744,-500.0,0.00031506,2]
[311587698,1705254698753,-500.0,0.00031506,2]
[311587699,1705254698763,-500.0,0.00031506,2]
[311587700,1705254698773,-500.0,0.00031506,2]
[311587701,1705254698783,-500.0,0.00031506,2]
[311587702,1705254698793,-500.0,0.00031506,2]
[311587703,1705254698803,-500.0,0.00031506,2]
[311587704,1705254698813,-552.38,0.00031506,2]
[311587705,1705254698823,-500.97,0.00031506,2]
[311587706,1705254698833,-500.0,0.00031506,2]
[311587707,1705254698843,-952.85,0.00031506,2]
[311587708,1705254698853,-500.0,0.00031506,2]
[311587709,1705254698863,-500.0,0.00031506,2]
[311587710,1705254698873,-500.0,0.00031506,2]
[311587711,1705254698884,-500.0,0.00031506,2]
[311587712,1705254698894,-1010.48,0.00031506,2]
[311587713,1705254698903,-500.0,0.00031506,2]
[311587714,1705254698913,-630.14204549,0.00031506,2]
[311587715,1705254698923,-542.19,0.00031506,2]
[311587716,1705254698932,-455.39646327,0.00031506,2]
[311587717,1705254698942,-500.0,0.00031506,2]
[311587718,1705254698952,-614.14,0.00031506,2]
[311587719,1705254698962,-500.0,0.00031506,2]
[311587720,1705254698972,-500.0,0.00031506,2]
[311587721,1705254698982,-500.0,0.00031506,2]
[311587722,1705254698992,-833.62,0.00031506,2]
[311587723,1705254699003,-500.0,0.00031506,2]
[311587724,1705254699013,-500.0,0.00031506,2]
[311587725,1705254699023,-621.16,0.00031506,2]
[311587726,1705254699033,-500.0,0.00031506,2]
[311587727,1705254699043,-500.0,0.00031506,2]
[311587728,1705254699053,-500.0,0.00031506,2]
[311587729,1705254699063,-677.45,0.00031506,2]
[311587730,1705254699073,-500.0,0.00031506,2]
[311587731,1705254699084,-519.26,0.00031506,2]
[311587732,1705254699094,-500.0,0.00031506,2]
[311587733,1705254699104,-500.0,0.00031506,2]
[311587734,1705254699114,-500.0,0.00031506,2]
[311587735,1705254699124,-903.38,0.00031506,2]
[311587736,1705254699135,-1028.98,0.00031506,2]
[311587737,1705254699145,-792.6,0.00031506,2]
[311587738,1705254699155,-500.0,0.00031506,2]
[311587739,1705254699166,-500.0,0.00031506,2]
[311587740,1705254699176,-500.0,0.00031506,2]
[311587741,1705254699186,-629.21,0.00031506,2]
[311587742,1705254699196,-500.0,0.00031506,2]
[311587743,1705254699206,-500.0,0.00031506,2]
[311587744,1705254699216,-500.0,0.00031506,2]
[311587745,1705254699226,-500.0,0.00031506,2]
[311587746,1705254699236,-500.0,0.00031506,2]
[311587747,1705254699246,-500.0,0.00031506,2]
[311587748,1705254699256,-769.34,0.00031506,2]
[311587749,1705254699266,-500.0,0.00031506,2]
[311587750,1705254699275,-500.0,0.00031506,2]
[311587751,1705254699285,-716.68,0.00031506,2]
[311587752,1705254699295,-883.7,0.00031506,2]
[311587753,1705254699305,-500.0,0.00031506,2]
[311587754,1705254699316,-854.99,0.00031506,2]
[311587755,1705254699326,-1889.13,0.00031506,2]
[311587756,1705254699336,-641.52109353,0.00031506,2]
[311587757,1705254699346,-500.0,0.00031506,2]
[311587758,1705254699356,-500.0,0.00031506,2]
[311587759,1705254699366,-500.0,0.00031506,2]
[311587760,1705254699375,-500.0,0.00031506,2]
[311587761,1705254699386,-1000.0,0.00031506,2]
[311587762,1705254699395,-500.0,0.00031506,2]
[311587763,1705254699405,-598.47,0.00031506,2]
[311587764,1705254699415,-500.0,0.00031506,2]
[311587765,1705254699425,-684.19,0.00031506,2]
[311587766,1705254699434,-500.0,0.00031506,2]
[311587767,1705254699445,-1015.86,0.00031506,2]
[311587768,1705254699455,-1532.26,0.00031506,2]
[311587769,1705254699465,-543.96,0.00031506,2]
[311587770,1705254699475,-377.41370362,0.00031506,2]
[311587771,1705254699485,-873.09,0.00031506,2]
[311587772,1705254699494,-728.21,0.00031506,2]
[311587773,1705254699504,-544.01,0.00031506,2]
[311587774,1705254699514,-500.0,0.00031506,2]
[311587775,1705254699524,-632.51,0.00031506,2]
[311587776,1705254699534,-847.21,0.00031506,2]
[311587777,1705254699544,-537.89,0.00031506,2]
[311587778,1705254699553,-500.0,0.00031506,2]
[311587779,1705254699563,-500.0,0.00031506,2]
[311587780,1705254699573,-300.0,0.00031506,2]
[311587781,1705254699583,-500.0,0.00031506,2]
[311587782,1705254699593,-500.0,0.00031506,2]
[311587783,1705254699603,-811.66,0.00031506,2]
[311587784,1705254699613,-500.0,0.00031506,2]
[311587785,1705254699623,-500.0,0.00031506,2]
[311587786,1705254699633,-577.79,0.00031506,2]
[311587787,1705254699642,-1041.79,0.00031506,2]
[311587788,1705254699653,-569.19,0.00031506,2]
[311587789,1705254699662,-500.0,0.00031506,2]
[311587790,1705254699673,-500.0,0.00031506,2]
[311587791,1705254699683,-799.01,0.00031506,2]
[311587792,1705254699693,-530.76648656,0.00031506,2]
[311587793,1705254699703,-1000.0,0.00031506,2]
[311587794,1705254699712,-500.0,0.00031506,2]
[311587795,1705254699722,-1129.85,0.00031506,2]
[311587796,1705254699732,-500.0,0.00031506,2]
[311587797,1705254699742,-623.05,0.00031506,2]
[311587798,1705254699752,-500.0,0.00031506,2]
[311587799,1705254699761,-254.03468672,0.00031506,2]
[311587800,1705254699771,-500.0,0.00031506,2]
[311587801,1705254699781,-500.0,0.00031506,2]
[311587802,1705254699791,-500.0,0.00031506,2]
[311587803,1705254699801,-500.0,0.00031506,2]
[311587804,1705254699810,-177.98711761,0.00031506,2]
[311587805,1705254699818,-1412.28,0.00031506,2]
[311587806,1705254699828,-416.3080754,0.00031506,2]
[311587807,1705254699837,-500.0,0.00031506,2]
[311587808,1705254699847,-500.0,0.00031506,2]
[311587809,1705254699857,-500.0,0.00031506,2]
[311587810,1705254699867,-500.0,0.00031506,2]
[311587811,1705254699877,-500.0,0.00031506,2]
[311587812,1705254699887,-500.0,0.00031506,2]
[311587813,1705254699897,-805.08,0.00031506,2]
[311587814,1705254699907,-585.49,0.00031506,2]
[311587815,1705254699917,-500.0,0.00031506,2]
[311587816,1705254699927,-631.63241885,0.00031506,2]
[311587817,1705254699937,-500.0,0.00031506,2]
[311587818,1705254699947,-500.0,0.00031506,2]
[311587819,1705254699957,-620.94,0.00031506,2]
[311587820,1705254699967,-623.21,0.00031506,2]
[311587821,1705254699978,-528.91,0.00031506,2]
[311587822,1705254699988,-1190.47,0.00031506,2]
[311587823,1705254699999,-500.0,0.00031506,2]
[311587824,1705254700009,-500.0,0.00031506,2]
[311587825,1705254700019,-500.0,0.00031506,2]
[311587826,1705254700029,-713.42681729,0.00031506,2]
[311587827,1705254700793,-382.57318271,0.00031506,2]
[311587828,1705254700803,-500.0,0.00031506,2]
[311587829,1705254700813,-500.0,0.00031506,2]
[311587830,1705254700824,-572.26,0.00031506,2]
[311587831,1705254700834,-609.54,0.00031506,2]
[311587832,1705254700844,-500.0,0.00031506,2]
[311587833,1705254700854,-1186.28,0.00031506,2]
[311587834,1705254700864,-669.88,0.00031506,2]
[311587835,1705254700874,-1818.34,0.00031506,2]
[311587836,1705254700885,-685.95,0.00031506,2]
[311587837,1705254700894,-501.47,0.00031506,2]
[311587838,1705254700904,-518.54,0.00031506,2]
[311587839,1705254700914,-593.21,0.00031506,2]
[311587840,1705254700924,-529.69,0.00031506,2]
[311587841,1705254700935,-500.0,0.00031506,2]
[311587842,1705254700945,-500.0,0.00031506,2]
[311587843,1705254700955,-1016.0,0.00031506,2]
[311587844,1705254700965,-500.0,0.00031506,2]
[311587845,1705254700976,-1621.92,0.00031506,2]
[311587846,1705254700986,-722.69,0.00031506,2]
[311587847,1705254700997,-903.91,0.00031506,2]
[311587848,1705254701007,-500.0,0.00031506,2]
[311587849,1705254701017,-500.0,0.00031506,2]
[311587850,1705254701027,-991.32,0.00031506,2]
[311587851,1705254701037,-500.0,0.00031506,2]
[311587852,1705254701047,-525.84,0.00031506,2]
[311587853,1705254701057,-500.0,0.00031506,2]
[311587854,1705254701068,-500.0,0.00031506,2]
[311587855,1705254701078,-500.0,0.00031506,2]
[311587856,1705254701088,-710.74,0.00031506,2]
[311587857,1705254701099,-704.61,0.00031506,2]
[311587858,1705254701109,-500.0,0.00031506,2]
[311587859,1705254701119,-500.0,0.00031506,2]
[311587860,1705254701130,-709.82,0.00031506,2]
[311587861,1705254701140,-500.0,0.00031506,2]
[311587862,1705254701150,-500.0,0.00031506,2]
[311587863,1705254701160,-1223.32,0.00031506,2]
[311587864,1705254701170,-710.54,0.00031506,2]
[311587865,1705254701180,-1094.22,0.00031506,2]
[311587866,1705254701190,-500.0,0.00031506,2]
[311587867,1705254701201,-793.79,0.00031506,2]
[311587868,1705254701211,-500.0,0.00031506,2]
[311587869,1705254701221,-589.24,0.00031506,2]
[311587870,1705254701231,-500.0,0.00031506,2]
[311587871,1705254701241,-1336.34,0.00031506,2]